bitfinex-derivatives/quotes_BTCF0:USTF0_20240907
["timestamp","ask_amount","ask_price","bid_price","bid_amount"]
[1725672702238,0.092844,53867.0,53866.0,0.0753156]
[1725672704826,0.092844,53867.0,53866.0,0.21678702]
[1725672707529,0.092844,53867.0,53866.0,0.30963302]
[1725672707931,0.092844,53867.0,53866.0,0.30962698]
[1725672708436,0.092844,53867.0,53866.0,0.21678098]
[1725672709436,0.092844,53867.0,53866.0,0.21678454]
[1725672714336,0.092844,53867.0,53866.0,0.21678702]
[1725672717740,0.185688,53867.0,53866.0,0.16898702]
[1725672718042,0.185688,53867.0,53866.0,0.0275156]
[1725672718244,0.092847,53865.0,53864.0,0.09284795]
[1725672718448,0.092847,53865.0,53864.0,0.23432935]
[1725672718652,0.092847,53865.0,53864.0,0.09284795]
[1725672718855,0.092842,53868.0,53864.0,0.09283593]
[1725672719049,0.092842,53868.0,53867.0,0.07426874]
[1725672719347,0.092849,53864.0,53863.0,0.12054908]
[1725672719948,0.092849,53864.0,53863.0,0.02771315]
[1725672720149,0.092853,53862.0,53861.0,0.07426018]
[1725672720356,0.092853,53862.0,53860.0,1.51169628]
[1725672720556,0.092853,53862.0,53861.0,0.07426018]
[1725672721452,0.092853,53862.0,53860.0,1.53937094]
[1725672721855,0.092853,53862.0,53861.0,0.1]
[1725672722050,0.092853,53862.0,53861.0,0.26711418]
[1725672723662,0.092853,53862.0,53861.0,0.26709755]
[1725672724262,0.21119205,53873.0,53861.0,0.1]
[1725672724457,0.21119205,53873.0,53868.0,0.092841]
[1725672724458,0.092839,53870.0,53868.0,0.092841]
[1725672724671,0.09284,53869.0,53868.0,0.143841]
[1725672726460,0.16558749,53869.0,53868.0,0.11896485]
[1725672727771,0.07274749,53869.0,53868.0,0.11896485]
[1725672728368,0.07274749,53869.0,53868.0,0.14618485]
[1725672728565,0.07274749,53869.0,53868.0,0.22043212]
[1725672728768,0.07274749,53869.0,53868.0,0.14618485]
[1725672729372,0.07274749,53869.0,53868.0,0.22043139]
[1725672730062,0.07274749,53869.0,53868.0,0.16943139]
[1725672730266,0.16558749,53869.0,53868.0,0.10146654]
[1725672731372,0.16558749,53869.0,53868.0,0.02722]
[1725672731678,0.16558749,53869.0,53868.0,0.07424654]
[1725672733877,0.16558749,53869.0,53868.0,0.16708854]
[1725672734196,0.07274749,53869.0,53868.0,0.092842]
[1725672734480,0.092837,53871.0,53869.0,0.09284]
[1725672734780,0.08044771,53870.0,53869.0,0.1670884]
[1725672734977,0.18288838,53870.0,53869.0,0.09284]
[1725672736482,0.18288838,53870.0,53869.0,0.08338756]
[1725672737678,0.27572738,53870.0,53869.0,0.08338756]
[1725672737875,0.47843464,53870.0,53869.0,0.08338756]
[1725672738482,0.27572738,53870.0,53869.0,0.08338756]
[1725672738785,0.17328671,53870.0,53869.0,0.08338756]
[1725672738981,0.37609865,53870.0,53869.0,0.08338756]
[1725672739183,0.47853932,53870.0,53869.0,0.08338756]
[1725672739584,0.18288838,53870.0,53865.0,0.092846]
[1725672739790,0.18437543,53866.0,53865.0,0.092846]
[1725672740084,0.26482314,53866.0,53865.0,0.092846]
[1725672740382,0.36726381,53866.0,53865.0,0.092846]
[1725672740582,0.46010981,53866.0,53865.0,0.092846]
[1725672741975,0.17329371,53866.0,53865.0,0.092846]
[1725672746275,0.092847,53865.0,53864.0,0.09283593]
[1725672746476,0.17329471,53865.0,53864.0,0.03477719]
[1725672747084,0.17329471,53865.0,53862.0,0.1]
[1725672747388,0.17329471,53865.0,53863.0,0.14147755]
[1725672747389,0.08044771,53864.0,53863.0,0.14147755]
[1725672747781,0.08044771,53864.0,53863.0,0.23432764]
[1725672748288,0.17329671,53864.0,53863.0,0.23432764]
[1725672748588,0.092849,53864.0,53863.0,0.23432764]
[1725672749692,0.1,53874.0,53863.0,0.14147764]
[1725672749693,0.0499,53873.0,53863.0,0.14147764]
[1725672749985,0.32894001,53882.0,53880.0,0.092822]
[1725672750188,0.11063215,53886.0,53881.0,0.1]
[1725672750189,0.092811,53886.0,53881.0,0.1]
[1725672750486,0.092811,53886.0,53885.0,0.1]
[1725672750877,0.0478,53887.0,53885.0,0.1]
[1725672750878,0.0478,53887.0,53885.0,0.192813]
[1725672751079,0.144303,53891.0,53886.0,0.092811]
[1725672751286,0.144303,53891.0,53887.0,0.05564137]
[1725672751589,0.144303,53891.0,53886.0,0.092811]
[1725672751793,0.07810964,53890.0,53886.0,0.092811]
[1725672752092,0.144303,53891.0,53886.0,0.092811]
[1725672753089,0.144303,53891.0,53888.0,0.1]
[1725672755792,0.07945017,53890.0,53888.0,0.1]
[1725672756000,0.07945017,53889.0,53888.0,0.1]
[1725672756496,0.07945017,53889.0,53887.0,0.092809]
[1725672756803,0.07945017,53888.0,53887.0,0.092809]
[1725672757094,0.16074383,53888.0,53887.0,0.092809]
[1725672757394,0.21770699,53888.0,53887.0,0.07071718]
[1725672762402,0.21770708,53888.0,53887.0,0.07071718]
[1725672763700,0.13825691,53888.0,53887.0,0.07071718]
[1725672764294,0.28312248,53888.0,53887.0,0.07071718]
[1725672764897,0.092804,53890.0,53887.0,0.07071718]
[1725672765299,0.092804,53890.0,53889.0,0.092806]
[1725672765694,0.0478,53894.0,53887.0,0.1]
[1725672766001,0.0478,53894.0,53893.0,0.1]
[1725672769699,0.0478,53894.0,53893.0,0.192799]
[1725672770206,0.0478,53894.0,53893.0,0.092799]
[1725672771895,0.18605393,53894.0,53893.0,0.092799]
[1725672772093,0.29421198,53894.0,53893.0,0.092799]
[1725672772307,0.35117395,53894.0,53893.0,0.092799]
[1725672772805,0.18605393,53894.0,53893.0,0.092799]
[1725672773799,0.35117395,53894.0,53893.0,0.092799]
[1725672774014,0.18605393,53894.0,53893.0,0.092799]
[1725672774512,0.35117395,53894.0,53893.0,0.12068943]
[1725672775398,0.18605393,53894.0,53893.0,0.12068943]
[1725672775798,0.294464,53894.0,53893.0,0.12068943]
[1725672776005,0.18605393,53894.0,53893.0,0.12068943]
[1725672777701,0.18604994,53894.0,53893.0,0.12068943]
[1725672779107,0.27884694,53894.0,53893.0,0.12068943]
[1725672779510,0.27884694,53894.0,53893.0,0.22068943]
[1725672779511,0.13824994,53894.0,53893.0,0.22068943]
[1725672780013,0.18495979,53900.0,53898.0,0.092789]
[1725672780309,0.18495979,53900.0,53899.0,0.29852827]
[1725672780310,0.092787,53900.0,53899.0,0.29852827]
[1725672780615,0.169024,53900.0,53899.0,0.28922235]
[1725672781308,0.169024,53900.0,53899.0,0.0501]
[1725672781503,0.092789,53899.0,53896.0,0.14843327]
[1725672781699,0.076237,53898.0,53896.0,0.14843327]
[1725672781914,0.076237,53897.0,53896.0,0.092794]
[1725672782099,0.0773353,53898.0,53897.0,0.092792]
[1725672785804,0.141689,53899.0,53898.0,0.092791]
[1725672787110,0.27992613,53899.0,53898.0,0.08351191]
[1725672792826,0.27992613,53899.0,53889.0,0.0508]
[1725672792827,1.49081919,53899.0,53891.0,0.092801]
[1725672793120,0.1,53896.0,53891.0,0.092801]
[1725672793320,0.28531919,53895.0,53891.0,0.092801]
[1725672793531,0.13823713,53894.0,53891.0,0.092801]
[1725672793724,0.13823713,53893.0,53891.0,0.092801]
[1725672793909,0.31157779,53892.0,53891.0,0.06836034]
[1725672794224,0.37812932,53892.0,53891.0,0.06836034]
[1725672795024,0.17334066,53892.0,53891.0,0.09732358]
[1725672795216,0.25458661,53892.0,53889.0,0.13109867]
[1725672795416,0.08053966,53891.0,53889.0,0.13109867]
[1725672795622,0.08053966,53890.0,53889.0,0.13109867]
[1725672797721,0.08053966,53890.0,53889.0,0.15900323]
[1725672799027,0.16178985,53890.0,53889.0,0.15900323]
[1725672799420,0.25459385,53890.0,53889.0,0.12070856]
[1725672799630,0.30439385,53890.0,53889.0,0.12070856]
[1725672800324,0.30439385,53890.0,53889.0,0.02790456]
[1725672800621,0.092813,53885.0,53884.0,0.10126679]
[1725672800921,0.27335266,53885.0,53884.0,0.092815]
[1725672801223,0.092813,53885.0,53884.0,0.092815]
[1725672803818,0.15945691,53885.0,53884.0,0.092815]
[1725672804227,0.092813,53885.0,53884.0,0.092815]
[1725672806127,0.092815,53884.0,53883.0,0.11811408]
[1725672806329,0.2518095,53884.0,53883.0,0.11811408]
[1725672807126,0.2518095,53884.0,53883.0,0.01811408]
[1725672807317,0.092816,53883.0,53882.0,0.092818]
[1725672807523,0.15980469,53883.0,53882.0,0.092818]
[1725672807925,0.092821,53881.0,53879.0,0.092823]
[1725672808434,0.092822,53880.0,53879.0,0.092823]
[1725672808924,0.092822,53880.0,53879.0,0.12036083]
[1725672814434,0.092816,53884.0,53882.0,0.092818]
[1725672814634,0.12866809,53883.0,53882.0,0.092818]
[1725672816047,0.12866809,53883.0,53882.0,0.192818]
[1725672816237,0.092816,53883.0,53882.0,0.192818]
[1725672817238,0.092816,53883.0,53882.0,0.2203079]
[1725672820436,0.142605,53890.0,53883.0,0.092816]
[1725672820637,0.142605,53890.0,53888.0,0.192806]
[1725672821436,0.142605,53890.0,53889.0,0.092806]
[1725672824041,0.2808631,53890.0,53889.0,0.092806]
[1725672824236,0.41964871,53890.0,53889.0,0.092806]
[1725672824431,0.46509488,53890.0,53889.0,0.092806]
[1725672826349,0.2808631,53890.0,53889.0,0.092806]
[1725672827650,0.2808631,53890.0,53889.0,0.11993979]
[1725672828347,0.48347487,53890.0,53889.0,0.11993979]
[1725672830143,0.2808631,53890.0,53889.0,0.11993979]
[1725672830848,0.28086291,53890.0,53889.0,0.11993979]
[1725672831756,0.35245937,53890.0,53889.0,0.07894362]
[1725672832152,0.21420146,53890.0,53889.0,0.07894362]
[1725672835065,0.30631016,53890.0,53889.0,0.07894362]
[1725672835265,0.21420146,53890.0,53889.0,0.07894362]
[1725672835561,0.30631016,53890.0,53889.0,0.07894362]
[1725672837570,0.21420146,53890.0,53889.0,0.07894362]
[1725672838667,0.142605,53890.0,53889.0,0.07894362]
[1725672839454,0.11053044,53891.0,53889.0,0.12713379]
[1725672839765,0.11053044,53894.0,53893.0,0.092799]
[1725672839967,0.11053044,53896.0,53894.0,0.1]
[1725672840166,0.11053044,53896.0,53895.0,0.1472]
[1725672840467,0.19022276,53896.0,53895.0,0.1472]
[1725672840668,0.19022276,53896.0,53895.0,0.239996]
[1725672841667,0.07969232,53896.0,53895.0,0.21599641]
[1725672842260,0.139489,53899.0,53897.0,0.092792]
[1725672842261,0.11053044,53898.0,53897.0,0.092792]
[1725672842557,0.1873657,53898.0,53897.0,0.092792]
[1725672843272,0.18731719,53898.0,53897.0,0.092792]
[1725672843457,0.07683526,53898.0,53897.0,0.092792]
[1725672844466,0.07683526,53898.0,53895.0,0.12320041]
[1725672844467,0.20326493,53903.0,53900.0,0.092787]
[1725672844769,0.07548803,53902.0,53900.0,0.192787]
[1725672845068,0.20326493,53903.0,53900.0,0.192787]
[1725672845268,0.07591798,53902.0,53900.0,0.192787]
[1725672845465,0.07591892,53901.0,53900.0,0.192787]
[1725672845863,0.07591892,53901.0,53895.0,0.05708843]
[1725672846077,0.07591892,53900.0,53898.0,0.09279]
[1725672846260,0.07591892,53899.0,53898.0,0.09279]
[1725672846959,0.15716172,53899.0,53898.0,0.09279]
[1725672847269,0.21416037,53899.0,53898.0,0.06780216]
[1725672850158,0.30694937,53899.0,53898.0,0.06780216]
[1725672851767,0.30694937,53899.0,53896.0,0.1]
[1725672851966,0.21416037,53898.0,53896.0,0.1]
[1725672852167,0.21416037,53897.0,53896.0,0.192794]
[1725672852574,0.21416037,53897.0,53896.0,0.092794]
[1725672853763,0.13824145,53897.0,53896.0,0.092794]
[1725672854276,0.092791,53898.0,53897.0,0.092792]
[1725672855976,0.092807,53889.0,53886.0,0.09281]
[1725672856369,0.1,53894.0,53886.0,0.09281]
[1725672856370,0.092808,53888.0,53886.0,0.09281]
[1725672856769,0.092809,53887.0,53886.0,0.09281]
[1725672857173,0.092809,53887.0,53886.0,0.12549938]
[1725672857375,0.092809,53887.0,53886.0,0.22549938]
[1725672857576,0.092804,53891.0,53886.0,0.13268938]
[1725672857781,0.0499,53896.0,53889.0,0.192806]
[1725672857782,0.092805,53890.0,53889.0,0.192806]
[1725672857976,0.092805,53890.0,53889.0,0.1]
[1725672859377,0.092809,53887.0,53886.0,0.13268938]
[1725672860078,0.092809,53887.0,53886.0,0.03268938]
[1725672860274,0.092809,53887.0,53885.0,0.092812]
[1725672861471,0.15179048,53886.0,53885.0,0.092812]
[1725672861676,0.15179048,53886.0,53885.0,0.1261903]
[1725672862186,0.23107846,53886.0,53885.0,0.10357128]
[1725672864384,0.23107473,53886.0,53885.0,0.10357128]
[1725672865685,0.41489332,53886.0,53885.0,0.10357128]
[1725672865886,0.41487644,53886.0,53885.0,0.10357128]
[1725672867383,0.23107473,53886.0,53885.0,0.10357128]
[1725672869190,0.14914521,53886.0,53885.0,0.10357128]
[1725672869987,0.05633421,53886.0,53885.0,0.17766796]
[1725672870182,0.05633421,53886.0,53885.0,0.10357128]
[1725672870587,0.05633421,53886.0,53885.0,0.17767117]
[1725672871200,0.05633421,53886.0,53885.0,0.10357128]
[1725672871397,0.05633421,53886.0,53885.0,0.17767117]
[1725672872293,0.05633421,53886.0,53885.0,0.10357128]
[1725672875593,0.092796,53895.0,53893.0,0.092799]
[1725672875794,0.092796,53895.0,53894.0,0.1]
[1725672876183,0.1476794,53895.0,53894.0,0.1]
[1725672876994,0.092796,53895.0,53894.0,0.1]
[1725672877191,0.23104257,53895.0,53894.0,0.1]
[1725672877392,0.38786917,53895.0,53894.0,0.1]
[1725672877697,0.43331155,53895.0,53894.0,0.1]
[1725672878294,0.23104257,53895.0,53894.0,0.1]
[1725672879091,0.43331155,53895.0,53894.0,0.1]
[1725672879287,0.43330914,53895.0,53894.0,0.1]
[1725672881195,0.13824416,53895.0,53894.0,0.192797]
[1725672881402,0.13824416,53895.0,53894.0,0.22684433]
[1725672883091,0.13824416,53895.0,53894.0,0.87628133]
[1725672883393,0.13824416,53895.0,53894.0,1.47628133]
[1725672883394,0.20144784,53895.0,53894.0,1.47628133]
[1725672883610,0.08128621,53895.0,53894.0,1.47628133]
[1725672884199,0.18399524,53901.0,53894.0,1.47628133]
[1725672884200,0.18399524,53901.0,53894.0,1.38348433]
[1725672884392,0.092777,53906.0,53901.0,0.092784]
[1725672884592,0.048,53907.0,53903.0,0.1]
[1725672884593,0.092779,53905.0,53903.0,0.1]
[1725672886098,0.092779,53905.0,53903.0,0.192782]
[1725672886694,0.092779,53905.0,53904.0,0.09278]
[1725672886901,0.048,53907.0,53905.0,0.092777]
[1725672887101,0.048,53907.0,53906.0,0.1]
[1725672887403,0.048,53907.0,53906.0,0.192777]
[1725672891005,0.062,53907.0,53906.0,0.193777]
[1725672891402,0.10876906,53907.0,53906.0,0.08934339]
[1725672892297,0.2191436,53907.0,53906.0,0.08934339]
[1725672892893,0.2191436,53907.0,53906.0,0.18934339]
[1725672893607,0.10876906,53907.0,53906.0,0.08934339]
[1725672897407,0.20154406,53907.0,53906.0,0.08934339]
[1725672899404,0.33976459,53907.0,53906.0,0.06698769]
[1725672906219,0.40630813,53907.0,53904.0,0.09617855]
[1725672906406,0.58387425,53906.0,53904.0,0.18895755]
[1725672906607,0.20476407,53905.0,53904.0,0.18895755]
[1725672906915,0.44432719,53905.0,53904.0,0.18895755]
[1725672907310,0.44272438,53906.0,53904.0,0.16664043]
[1725672907511,0.44272438,53906.0,53904.0,0.16764043]
[1725672907811,0.20316126,53906.0,53904.0,0.16764043]
[1725672908014,0.20316126,53906.0,53905.0,0.092778]
[1725672908207,0.092778,53906.0,53905.0,0.092778]
[1725672908413,0.20316126,53906.0,53905.0,0.092778]
[1725672908610,0.092778,53906.0,53905.0,0.092778]
[1725672910227,0.106778,53906.0,53905.0,0.093778]
[1725672910534,0.21716126,53906.0,53905.0,0.093778]
[1725672911410,0.12438326,53906.0,53905.0,0.093778]
[1725672911616,0.11038326,53910.0,53905.0,1.15752]
[1725672911824,0.09211563,53911.0,53910.0,0.09277]
[1725672912018,0.09211563,53913.0,53912.0,0.092766]
[1725672912223,0.09211563,53913.0,53912.0,0.192766]
[1725672912421,0.00244001,53918.0,53917.0,0.092758]
[1725672912630,0.0920853,53919.0,53917.0,0.1]
[1725672912828,0.09208582,53919.0,53911.0,0.07410844]
[1725672913124,0.09208582,53919.0,53918.0,0.192756]
[1725672913322,0.11038326,53926.0,53921.0,0.09275]
[1725672913644,0.092746,53924.0,53921.0,0.19275]
[1725672914711,0.093746,53924.0,53921.0,0.19375]
[1725672917522,0.093746,53924.0,53921.0,0.22773617]
[1725672918827,0.093746,53924.0,53922.0,0.092749]
[1725672920430,0.093746,53924.0,53922.0,0.093749]
[1725672921728,0.03795763,53923.0,53922.0,0.093749]
[1725672922520,0.11920095,53923.0,53922.0,0.08437411]
[1725672922724,0.17612884,53923.0,53922.0,0.08437411]
[1725672923331,0.17612884,53923.0,53922.0,0.08337411]
[1725672923629,0.17712884,53923.0,53922.0,0.08437411]
[1725672926124,0.26987584,53923.0,53922.0,0.08437411]
[1725672926926,0.17712884,53923.0,53922.0,0.08437411]
[1725672928727,0.13917121,53923.0,53922.0,0.08437411]
[1725672929526,0.001,53923.0,53922.0,0.08437411]
[1725672932636,0.093747,53923.0,53922.0,0.08437411]
[1725672937541,0.23191961,53923.0,53922.0,0.08437411]
[1725672937934,0.23192017,53923.0,53922.0,0.08437411]
[1725672938844,0.13917317,53923.0,53922.0,0.08437411]
[1725672939934,0.16668654,53923.0,53922.0,0.08437411]
[1725672940139,0.30485971,53923.0,53922.0,0.08437411]
[1725672940340,0.13917317,53923.0,53922.0,0.08437411]
[1725672941442,0.22030363,53923.0,53922.0,0.18437411]
[1725672941645,0.32265058,53923.0,53922.0,0.18437411]
[1725672942143,0.13917317,53923.0,53922.0,0.18437411]
[1725672942341,0.22123798,53923.0,53922.0,0.18437411]
[1725672942533,0.13917317,53923.0,53922.0,0.18437411]
[1725672943338,0.22127853,53923.0,53922.0,0.18437411]
[1725672943740,0.32362548,53923.0,53922.0,0.18437411]
[1725672944447,0.18545231,53923.0,53922.0,0.18437411]
[1725672944639,0.001,53923.0,53922.0,0.18437411]
[1725672946545,0.001,53923.0,53922.0,0.4679423]
[1725672946945,0.046,53932.0,53931.0,0.092734]
[1725672947147,0.046,53932.0,53931.0,0.192734]
[1725672948053,0.046,53932.0,53931.0,0.2483467]
[1725672948252,0.047,53932.0,53931.0,0.2493467]
[1725672949451,0.047,53932.0,53931.0,0.193734]
[1725672952551,0.12822749,53932.0,53931.0,0.193734]
[1725672952746,0.18514429,53932.0,53931.0,0.193734]
[1725672953446,0.18514429,53932.0,53931.0,0.22669619]
[1725672955854,0.27787629,53932.0,53931.0,0.22669619]
[1725672959663,0.139732,53932.0,53931.0,0.22669619]
[1725672959865,0.18289265,53932.0,53931.0,0.22669619]
[1725672964468,0.18289265,53932.0,53931.0,0.12669619]
[1725672966271,0.18289265,53932.0,53931.0,0.03396219]
[1725672966560,0.28223259,53932.0,53926.0,0.0556127]
[1725672966772,0.092742,53926.0,53925.0,0.2483557]
[1725672967461,0.17397734,53926.0,53925.0,0.192743]
[1725672967671,0.23089965,53926.0,53925.0,0.192743]
[1725672967857,0.23089965,53926.0,53925.0,0.193743]
[1725672968555,0.23089965,53926.0,53925.0,0.001]
[1725672970358,0.42364165,53926.0,53925.0,0.001]
[1725672970557,0.42364165,53926.0,53895.0,0.092795]
[1725672970558,0.092766,53912.0,53910.0,0.1]
[1725672970768,0.13815765,53911.0,53910.0,0.1]
[1725672972065,0.13815765,53911.0,53910.0,0.19277]
[1725672973068,0.20345924,53911.0,53910.0,0.19277]
[1725672973267,0.14015765,53911.0,53910.0,0.19277]
[1725672974559,0.002,53911.0,53910.0,0.24829404]
[1725672976455,0.002,53911.0,53910.0,0.19277]
[1725672976865,0.05611832,53911.0,53910.0,0.19277]
[1725672978267,0.002,53911.0,53910.0,0.19277]
[1725672987976,0.002,53911.0,53910.0,0.29147]
[1725672989372,0.002,53911.0,53910.0,0.34699404]
[1725672989574,0.11238239,53911.0,53910.0,0.29147]
[1725672992270,0.002,53911.0,53910.0,0.29147]
[1725672992679,0.11238239,53911.0,53910.0,0.29147]
[1725672993081,0.002,53911.0,53910.0,0.43124]
[1725672993278,0.09395941,53911.0,53910.0,0.43124]
[1725672993470,0.002,53911.0,53910.0,0.43124]
[1725672993672,0.09395941,53911.0,53910.0,0.43124]
[1725672995779,0.002,53911.0,53910.0,0.43124]
[1725672996287,0.002,53911.0,53910.0,0.33124]
[1725672996472,0.002,53911.0,53910.0,0.43124]
[1725672997681,0.002,53911.0,53910.0,0.66531454]
[1725672998384,0.092753,53920.0,53917.0,0.092757]
[1725672998575,0.092753,53920.0,53919.0,0.05558206]
[1725673000584,0.5564,53919.0,53915.0,0.05561118]
[1725673000778,0.1,53917.0,53913.0,0.05561118]
[1725673000978,0.1,53914.0,53913.0,0.05561118]
[1725673001182,0.192763,53914.0,53913.0,0.05561118]
[1725673001684,0.192763,53914.0,53911.0,0.092768]
[1725673001685,0.091765,53913.0,53912.0,0.05561118]
[1725673001887,0.092766,53912.0,53911.0,0.092768]
[1725673002387,0.091766,53912.0,53911.0,0.092768]
[1725673003800,0.090766,53912.0,53911.0,0.092768]
[1725673004501,0.093766,53912.0,53911.0,0.092768]
[1725673009304,0.093766,53912.0,53911.0,0.192768]
[1725673016808,0.093766,53912.0,53911.0,0.092768]
[1725673017709,0.094766,53912.0,53911.0,0.093768]
[1725673018609,0.090766,53912.0,53911.0,0.092768]
[1725673018909,0.094766,53912.0,53911.0,0.093768]
[1725673020410,0.097766,53912.0,53911.0,0.093768]
[1725673021010,0.097766,53912.0,53911.0,0.193768]
[1725673021315,0.007,53912.0,53911.0,0.193768]
[1725673021616,0.092757,53918.0,53917.0,0.092757]
[1725673022113,0.092757,53918.0,53917.0,0.14836049]
[1725673023517,0.139052,53921.0,53918.0,0.092755]
[1725673023715,0.139052,53921.0,53919.0,0.1]
[1725673024618,0.23118694,53921.0,53919.0,0.1]
[1725673025115,0.24018694,53921.0,53919.0,0.101]
[1725673026819,0.05406285,53920.0,53919.0,0.101]
[1725673027221,0.05406285,53920.0,53919.0,0.193754]
[1725673027619,0.26546391,53920.0,53919.0,0.193754]
[1725673027817,0.1353074,53920.0,53919.0,0.193754]
[1725673028224,0.20160682,53920.0,53919.0,0.192754]
[1725673028416,0.1443074,53920.0,53919.0,0.193754]
[1725673029816,0.29185137,53920.0,53919.0,0.193754]
[1725673030018,0.1443074,53920.0,53919.0,0.193754]
[1725673030515,0.21053791,53920.0,53919.0,0.193754]
[1725673030715,0.21053791,53920.0,53919.0,0.20322581]
[1725673030716,0.1443074,53920.0,53919.0,0.20322581]
[1725673031112,0.1443074,53920.0,53919.0,0.29597981]
[1725673031327,0.04482625,53920.0,53919.0,1.45237981]
[1725673031529,0.04482044,53920.0,53919.0,1.45237981]
[1725673031822,0.009,53920.0,53919.0,1.45237981]
[1725673033520,0.11950005,53920.0,53919.0,0.85237981]
[1725673034631,0.009,53920.0,53919.0,0.85237981]
[1725673035117,0.009,53920.0,53919.0,0.94501658]
[1725673035521,0.009,53920.0,53919.0,0.85237981]
[1725673036824,0.009,53920.0,53919.0,0.29597981]
[1725673037423,0.3265,53931.0,53930.0,0.092735]
[1725673037618,0.16636649,53938.0,53934.0,0.092728]
[1725673037816,0.16636649,53938.0,53935.0,0.1]
[1725673038824,0.07364449,53938.0,53937.0,0.092723]
[1725673039021,0.009,53938.0,53937.0,0.092723]
[1725673040725,0.0929,53944.0,53940.0,0.092717]
[1725673040932,0.0929,53944.0,53943.0,0.1]
[1725673041931,0.14549008,53944.0,53943.0,0.192713]
[1725673042727,0.28360316,53944.0,53943.0,0.17344171]
[1725673043521,0.28360316,53944.0,53943.0,0.17444171]
[1725673046133,0.28360316,53944.0,53943.0,0.20633435]
[1725673048425,0.28359989,53944.0,53943.0,0.20633435]
[1725673049635,0.14549008,53944.0,53943.0,0.20633435]
[1725673050042,0.0929,53944.0,53943.0,0.20633435]
[1725673051541,0.0929,53946.0,53945.0,0.09271]
[1725673053537,0.0929,53946.0,53945.0,0.09371]
[1725673054336,0.185608,53946.0,53945.0,0.09371]
[1725673057143,0.23874325,53946.0,53945.0,0.09371]
[1725673057640,0.37686062,53946.0,53945.0,0.07307687]
[1725673058435,0.33146091,53946.0,53945.0,0.07307687]
[1725673058639,0.37686092,53946.0,53945.0,0.07307687]
[1725673063548,0.37685678,53946.0,53945.0,0.07307687]
[1725673064745,0.33085743,53946.0,53945.0,0.07307687]
[1725673065151,0.27772218,53946.0,53945.0,0.07307687]
[1725673065450,0.27774647,53946.0,53945.0,0.07307687]
[1725673065645,0.185608,53946.0,53945.0,0.07307687]
[1725673068249,0.29614502,53946.0,53945.0,0.001]
[1725673068548,0.185608,53946.0,53945.0,0.001]
[1725673069953,0.278316,53946.0,53945.0,0.001]
[1725673072252,0.185618,53940.0,53939.0,0.05545201]
[1725673072450,0.092722,53938.0,53937.0,0.05545201]
[1725673072658,0.1849847,53938.0,53937.0,0.05545201]
[1725673072843,0.092723,53937.0,53936.0,0.22355809]
[1725673073045,0.20343705,53937.0,53936.0,0.22355809]
[1725673073649,0.091723,53937.0,53936.0,0.22355809]
[1725673074247,0.091723,53937.0,53936.0,0.22455809]
[1725673076354,0.20241451,53937.0,53936.0,0.22455809]
[1725673076851,0.091723,53937.0,53936.0,0.22455809]
[1725673079856,0.22985032,53937.0,53936.0,0.22455809]
[1725673080154,0.28461231,53937.0,53936.0,0.22455809]
[1725673082553,0.48726352,53937.0,53936.0,0.22455809]
[1725673083860,0.092735,53930.0,53929.0,0.189137]
[1725673084053,0.28562431,53930.0,53929.0,0.189137]
[1725673084354,0.092742,53926.0,53925.0,0.092742]
[1725673084553,0.36769622,53926.0,53925.0,0.092742]
[1725673084753,0.28563131,53926.0,53925.0,0.092742]
[1725673086356,0.28463131,53926.0,53925.0,0.092742]
[1725673086952,0.49050612,53926.0,53925.0,0.093742]
[1725673087346,0.49050612,53926.0,53925.0,0.001]
[1725673087347,1.82356235,53926.0,53925.0,0.001]
[1725673087547,1.60355875,53926.0,53925.0,0.001]
[1725673087759,1.74691756,53926.0,53925.0,0.001]
[1725673087949,1.74691756,53926.0,53911.0,0.05545201]
[1725673087950,0.092766,53912.0,53911.0,0.05545201]
[1725673088150,0.092773,53908.0,53907.0,0.05545201]
[1725673088352,0.092775,53907.0,53903.0,0.0462]
[1725673088956,0.092775,53907.0,53905.0,0.1]
[1725673089160,0.092775,53907.0,53903.0,0.0462]
[1725673089351,0.092775,53907.0,53903.0,0.17779845]
[1725673089850,0.095775,53907.0,53903.0,0.17779845]
[1725673093950,0.092777,53906.0,53903.0,0.17779845]
[1725673094846,0.003,53907.0,53903.0,0.17779845]
[1725673094847,0.092779,53905.0,53903.0,0.17779845]
[1725673095043,0.09278,53904.0,53903.0,0.17779845]
[1725673095951,0.09278,53904.0,53903.0,0.27058045]
[1725673097161,0.09378,53904.0,53903.0,0.17879845]
[1725673097955,0.09378,53904.0,53903.0,0.17779845]
[1725673098158,0.09378,53904.0,53903.0,0.17879845]
[1725673098159,0.10078,53904.0,53903.0,0.17879845]
[1725673107466,0.29356,53904.0,53903.0,0.03259845]
[1725673107766,1.03494813,53904.0,53903.0,0.001]
[1725673108263,1.03460028,53904.0,53903.0,0.001]
[1725673108454,0.9429,53904.0,53903.0,0.001]
[1725673108956,0.38634,53904.0,53903.0,0.001]
[1725673112568,0.42031313,53904.0,53903.0,0.001]
[1725673123669,1.57687313,53904.0,53903.0,1e-06]
[1725673124279,1.47687313,53904.0,53903.0,1e-06]
[1725673124573,1.57687313,53904.0,53903.0,1e-06]
[1725673124972,1.78011508,53904.0,53903.0,1e-06]
[1725673125174,0.092805,53890.0,53885.0,0.05545201]
[1725673125376,0.1,53888.0,53885.0,0.03385931]
[1725673125677,0.099,53888.0,53884.0,0.05545201]
[1725673126376,0.099,53888.0,53885.0,0.001]
[1725673127868,0.092811,53886.0,53885.0,0.001]
[1725673128183,0.099,53888.0,53884.0,0.006]
[1725673128372,0.092813,53885.0,53884.0,0.006]
[1725673129688,0.087815,53884.0,53882.0,0.18136935]
[1725673130373,0.087815,53884.0,53882.0,0.12591734]
[1725673130684,0.087815,53884.0,53883.0,0.092816]
[1725673131779,0.083815,53884.0,53883.0,0.092816]
[1725673132374,0.083815,53884.0,53883.0,0.082816]
[1725673133272,0.083815,53884.0,53883.0,0.13826801]
[1725673133886,0.083815,53884.0,53883.0,0.082816]
[1725673134269,0.083815,53884.0,53883.0,0.13826801]
[1725673134973,0.083815,53884.0,53883.0,0.082816]
[1725673135677,0.083815,53884.0,53882.0,0.08855135]
[1725673135678,0.092816,53883.0,53882.0,0.03309934]